Cogmind - Beta 13 @@@ ROGUE MODE // 2024.06.15 @ 00:01:43 Player: BatSpy Result: Destroyed by G-67 Veteran with Field Laser Performance ------------- Evolutions (7) 3500 Regions Visited (11) 2200 Robots Destroyed (61) 305 Value Destroyed (2277) 2277 Prototype IDs (17) 340 Alien Tech Used (0) 0 Bonus (955) 955 TOTAL SCORE: 9577 Bonus ------- Follower Combat Kills 478 Entered DSFs 500 Friendly Fire -23 Cogmind --------- Core Integrity 0/1300 Matter 264/300 Energy 100/100 System Corruption 19% Temperature Cool (24) Movement Flying (30) Location -3/Research Parts ------- > --- POWER (3) -------- (None) > --- PROPULSION (4) --- Improved Diametric Drive > --- UTILITY (10) ----- (None) > --- WEAPON (4) ------- (None) > --- INVENTORY (5) ---- Q-thruster Advanced Matter Compressor (400) Improved Phase Shifter Advanced Field Recycling Unit (0) Hypervelocity Railgun Peak State ------------ > --- POWER ------------ Light Nuclear Core > --- PROPULSION ------- Myomer Leg Myomer Leg Myomer Leg Compact Wheel > --- UTILITY ---------- Advanced Power Amplifier Triangulator Enhanced Optical Array Improved Medium Armor Plating Graphene Brace Advanced Force Field Improved Remote Shield Recalibrator > --- WEAPON ----------- Field Laser Wave Gun Heavy Dispersion Rifle Power Maul > --- INVENTORY -------- Impulse Thruster Array Advanced Matter Compressor Improved Phase Shifter Advanced Field Recycling Unit [Rating: 97] Favorites ----------- Power Light Fission Core Engine Light Ion Engine Power Core Light Fission Core Propulsion Compact Wheel Treads Advanced Treads Leg Flexi-carbon Leg Wheel Compact Wheel Hover Unit Hover Unit Flight Unit Flight Unit Utility Enhanced Optical Array Device Trap Scanner Storage Small Storage Unit Processor Enhanced Optical Array Hackware Authchip [Processor] Protection Hardened Medium Armor Plating Weapon Power Maul Energy Gun Improved Arc Projector Energy Cannon Advanced Beam Cannon Ballistic Gun Assault Rifle Ballistic Cannon Assault Cannon Impact Weapon Power Maul Slashing Weapon Phasing Sabre Build | -11 -10 -9 -8 -7 -7 -6 -5 -5 -4 -4 -3 ------- Run | Yrd Mat Mat Mat Fac Sto Fac Fac DSF Fac Ext Res Slots Evolved 14 | . . 2 2 2 . 2 2 . 2 . 2 Power 2 | . . . . 1 . 1 . . . . . Propulsion 2 | . . . 2 . . . . . . . . Utility 8 | . . 2 . 1 . 1 1 . 1 . 2 Weapon 2 | . . . . . . . 1 . 1 . . Parts Attached 147 | 6 5 6 18 26 4 23 1 7 8 38 5 Power 17 | 1 1 . 3 3 . 4 . . . 5 . Engine 5 | 1 1 . 1 1 . 1 . . . . . Core 12 | . . . 2 2 . 3 . . . 5 . Reactor . | . . . . . . . . . . . . Propulsion 31 | 2 . 2 5 6 2 4 . . 1 7 2 Treads 2 | . . . . 2 . . . . . . . Leg 11 | . . . 2 3 1 2 . . . 3 . Wheel 8 | 2 . . . . . 2 . . . 4 . Hover 2 | . . . 1 1 . . . . . . . Flight 8 | . . 2 2 . 1 . . . 1 . 2 Utility 59 | 1 4 2 5 11 . 8 1 4 4 17 2 Device 38 | . 2 1 3 7 . 4 1 2 3 13 2 Storage 4 | 1 1 . . 1 . . . . 1 . . Processor 7 | . 1 1 1 1 . 2 . . . 1 . Hackware 4 | . . . . 1 . 1 . 2 . . . Protection 6 | . . . 1 1 . 1 . . . 3 . Artifact . | . . . . . . . . . . . . Weapon 40 | 2 . 2 5 6 2 7 . 3 3 9 1 Energy Gun 16 | . . . 2 . . 4 . 3 3 3 1 Energy Cannon 5 | . . 2 1 . . 1 . . . 1 . Ballistic Gun 5 | 2 . . 1 . 2 . . . . . . Ballistic Cannon 7 | . . . 1 4 . 2 . . . . . Launcher . | . . . . . . . . . . . . Special Weapon . | . . . . . . . . . . . . Impact Weapon 4 | . . . . 2 . . . . . 2 . Slashing Weapon 3 | . . . . . . . . . . 3 . Piercing Weapon . | . . . . . . . . . . . . Special Melee Weapon . | . . . . . . . . . . . . Unidentified Prototypes 10 | . . 1 . 2 1 2 . . 1 . 3 Corrupted Parts 1 | . . . . . . . . . . 1 . System Corruption 10 | . . . . . . . . . . 10 . Parts Lost 88 | . . 6 14 16 3 2 . 13 7 16 11 Power 13 | . . 1 2 2 1 . . 3 . 3 1 Propulsion 24 | . . 4 4 5 2 1 . 3 1 2 2 Utility 31 | . . . 4 6 . 1 . 4 3 8 5 Weapon 20 | . . 1 4 3 . . . 3 3 3 3 Highest Loss Streak 13 | . . 4 7 10 3 1 . 13 7 7 9 To Critical Strikes . | . . . . . . . . . . . . Average Slot Usage (%) 63 | . 91 85 57 77 18 75 88 77 48 50 50 Engine 2 | . 14 9 2 2 . . . . . . . Core 5 | . . . 3 6 3 14 17 12 . 4 2 Leg 5 | . . . 2 12 . 9 11 9 . 1 8 Wheel 4 | . 28 7 . . . 9 5 3 . 6 2 Flight 1 | . . 6 6 . 2 . . . 3 . 1 Device 13 | . 5 8 9 17 4 15 23 21 13 12 16 Storage 2 | . 14 11 2 3 . . . . . . . Processor 8 | . . 22 14 6 . 5 11 11 10 8 3 Hackware 3 | . . . . 3 . 5 5 3 9 2 . Protection 1 | . . . 1 2 . 1 . . . 3 2 Energy Gun 3 | . . . 3 . . 6 5 9 9 1 7 Energy Cannon 2 | . . 16 4 3 . . . . . . . Ballistic Gun 1 | . 28 3 . . 6 . . . . . . Ballistic Cannon 2 | . . . 3 7 . 3 5 1 . . . Impact Weapon 1 | . . . . 1 . . . . . 3 2 Naked Turns 70 | . . . . . 39 31 . . . . . Heaviest Build 59 | 11 12 17 23 39 12 38 36 43 17 59 59 Greatest Support 75 | 26 26 26 10 27 10 32 16 40 7 75 75 Greatest Overweight (x) 11 | 2 . 5 4 8 2 6 2 3 5 11 1 Average Overweight (x) . | . . 1 1 . . . 2 1 3 1 . Largest Inventory Capacity 8 | 8 8 8 8 8 5 5 5 5 5 5 5 Average Capacity 5 | 7 8 8 5 6 5 5 5 5 5 5 5 Most Carried 8 | 5 8 8 5 8 5 5 3 5 5 5 5 Average Carried 4 | 2 6 5 1 5 4 4 3 3 4 4 4 Final Capacity 8 | 8 8 8 5 5 5 5 5 5 5 5 5 Final Carried 7 | 3 7 6 4 5 4 4 3 5 5 3 5 Class Distribution -------------------- 64% | Mutant 31% | Scavenger-Mutant Dominant Class ---------------- Mutant | -10/Materials Mutant | -9/Materials Mutant | -8/Materials Mutant | -7/Factory Mutant | -7/Storage Scavenger-Mutant | -6/Factory Scavenger-Mutant | -5/Factory Scavenger-Mutant | -5/DSF Mutant | -4/Factory Mutant | -4/Extension Scavenger-Mutant | -3/Research Resources | -11 -10 -9 -8 -7 -7 -6 -5 -5 -4 -4 -3 ----------- Run | Yrd Mat Mat Mat Fac Sto Fac Fac DSF Fac Ext Res Matter Collected 2726 | 228 98 153 220 413 . 629 . 10 . 909 66 Remotely . | . . . . . . . . . . . . Salvage Created 2697 | . 153 435 310 497 . 591 . . . 509 202 Parts 111 | . 16 26 9 21 . 16 . . . 22 1 Haulers Intercepted . | . . . . . . . . . . . . Recyclers Shooed . | . . . . . . . . . . . . Parts Field Recycled 3 | . . . . . . . . . . 3 . Retrieved Matter 5 | . . . . . . . . . . 5 . Parts Self-Destructed . | . . . . . . . . . . . . Prevented . | . . . . . . . . . . . . Kills | -11 -10 -9 -8 -7 -7 -6 -5 -5 -4 -4 -3 ------- Run | Yrd Mat Mat Mat Fac Sto Fac Fac DSF Fac Ext Res Combat Hostiles Destroyed 45 | . 5 8 8 10 . 6 . . . 5 3 Melee 4 | . . . . 2 . . . . . 1 1 Guns 14 | . 5 . 4 . . 3 . . . 2 . Cannons 21 | . . 8 4 6 . 3 . . . . . AOE 1 | . . . . 1 . . . . . . . Classes Destroyed 13 | . 3 2 . 5 . 2 . . . . 1 Worker 1 | . . . . 1 . . . . . . . Builder 3 | . . . . 1 . . . . . 2 . Tunneler 1 | . . . . 1 . . . . . . . Recycler 7 | . . . . 2 . 3 . . . 2 . Operator 1 | . . . . . . . . . . . 1 Watcher 5 | . 1 3 . 1 . . . . . . . Swarmer 8 | . 3 . . 2 . . . . . 3 . Grunt 21 | . 2 4 6 5 . 1 . . . 1 2 Duelist 1 | . . 1 . . . . . . . . . Sentry 8 | . . 3 2 1 . 1 . . . 1 . Hunter 2 | . . . . . . 2 . . . . . Programmer 3 | . . . . 2 . . . . . . 1 Assembled 2 | . . . . . . 2 . . . . . Best Kill Streak 8 | . 3 5 3 8 . 3 . . . 4 1 Combat Bots Only 4 | . 3 4 3 3 . 1 . . . 3 1 Max Kills in Single Turn 2 | . 1 1 1 2 . 1 . . . 1 1 Gunslinging . | . . . . . . . . . . . . Exploded 1 | . . . . 1 . . . . . . . Melee 1 | . . . . 1 . . . . . 1 1 Uniques/NPCs Destroyed . | . . . . . . . . . . . . Combat | -11 -10 -9 -8 -7 -7 -6 -5 -5 -4 -4 -3 -------- Run | Yrd Mat Mat Mat Fac Sto Fac Fac DSF Fac Ext Res Hostile Shots Fired 953 | . 32 52 115 185 119 85 . 120 42 35 168 Missed 333 | . 12 14 28 72 53 28 . 47 9 7 63 Damage Taken 11240 | . 175 519 1398 1806 642 798 . 1171 832 1515 2384 Core 3864 | . 19 113 525 333 301 182 . 482 430 179 1300 Absorbed by Shields 282 | . . . . . . . . . . 145 137 Ignored by Resistances 39 | . . . . . . . . . . 39 . Core Remaining (%) 56 | 100 92 71 4 . 9 78 . 51 . 47 . Volleys Fired 197 | . 17 28 54 25 6 41 . 2 4 18 2 Largest 3 | . 2 2 2 2 2 2 . 3 2 2 2 Hottest 240 | . 40 136 124 119 50 154 . 240 130 144 144 Shots Fired 309 | . 34 52 59 47 12 68 . 6 5 22 4 Gun 172 | . 34 . 36 . 12 53 . 6 5 22 4 Cannon 137 | . . 52 23 47 . 15 . . . . . Launcher . | . . . . . . . . . . . . Special . | . . . . . . . . . . . . Kinetic 131 | . 34 . 28 42 12 15 . . . . . Thermal 174 | . . 52 31 5 . 53 . 6 1 22 4 Explosive . | . . . . . . . . . . . . Electromagnetic 4 | . . . . . . . . . 4 . . Robot Hit Streak 10 | . 6 5 8 6 5 7 . 10 3 4 2 Robot Miss Streak 6 | . 4 4 4 6 3 6 . 2 1 2 4 Penetration Max . | . . . . . . . . . . . . Secondary Targets 2 | . 2 . . . . . . . . . . Max Gunslinging Chain 1 | . 1 . . . . . . . . . . Shots Hit Robots 215 | . 17 28 39 35 7 35 . 6 4 26 18 Core Hits 91 | . 8 13 19 14 2 22 . 3 1 7 2 Critical Kills . | . . . . . . . . . . . . Critical Parts Destroyed 6 | . . . . 1 . . . . . 2 3 Critical Strikes 18 | . . . 5 2 . 4 . . . 3 4 Burn 9 | . . . 5 . . 3 . . . . 1 Blast 2 | . . . . 1 . 1 . . . . . Smash 6 | . . . . 1 . . . . . 2 3 Sever 1 | . . . . . . . . . . 1 . Melee Attacks 95 | . . . . 18 . . . . . 58 19 Impact 76 | . . . . 18 . . . . . 39 19 Slashing 19 | . . . . . . . . . . 19 . Piercing . | . . . . . . . . . . . . Sneak Attacks 4 | . . . . . . . . . . 4 . Combat Hostiles . | . . . . . . . . . . . . Follow-up Attacks . | . . . . . . . . . . . . Damage Inflicted 6257 | . 177 599 722 1709 170 757 . 168 40 1026 889 Guns 1707 | . 177 . 430 . 158 491 . 168 40 203 40 Cannons 1914 | . . 598 292 758 . 266 . . . . . Explosions 502 | . . . . 502 . . . . . . . Melee 2091 | . . . . 435 . . . . . 823 833 Ramming 43 | . . 1 . 14 12 . . . . . 16 Kinetic 1714 | . 177 . 405 708 158 266 . . . . . Thermal 1900 | . . 598 317 50 . 491 . 168 33 203 40 Explosive 502 | . . . . 502 . . . . . . . Electromagnetic 7 | . . . . . . . . . 7 . . Impact 1499 | . . . . 435 . . . . . 231 833 Slashing 592 | . . . . . . . . . . 592 . Piercing . | . . . . . . . . . . . . Highest Corruption 31 | . . . . 8 7 . . 1 9 31 19 Average Corruption 9 | . . . . 4 7 . . 1 7 11 15 Corruption Purged 1 | . . . . 1 . . . . . . . Corruption Blocked . | . . . . . . . . . . . . Effects 85 | . . . . 17 4 . . . 1 45 18 Message Errors 24 | . . . . 4 . . . . . 18 2 Matter Fused 19 | . . . . 5 1 . . . 1 8 4 Heat Flow Errors 10 | . . . . 2 . . . . . 6 2 Energy Discharges 6 | . . . . 3 1 . . . . 2 . Parts Rejected 1 | . . . . . . . . . . 1 . Data Loss (minor) 6 | . . . . 1 . . . . . 4 1 Data Loss (major) 4 | . . . . 1 1 . . . . 1 1 Misfires 3 | . . . . . . . . . . 3 . Alerts 3 | . . . . 1 1 . . . . 1 . Misdirections 9 | . . . . . . . . . . 1 8 Overload Shots . | . . . . . . . . . . . . Overflow Damage 682 | . . 1 2 187 . . . . . 241 251 Projectiles 39 | . . 1 2 36 . . . . . . . Explosions 79 | . . . . 79 . . . . . . . Melee 564 | . . . . 72 . . . . . 241 251 Knockbacks 25 | . . . 2 12 . 2 . . . 3 6 Impact 14 | . . . . 5 . . . . . 3 6 Kinetic 11 | . . . 2 7 . 2 . . . . . Secondary . | . . . . . . . . . . . . Self-Inflicted Damage 136 | . . . . 130 6 . . . . . . Shots 2 | . . . . 2 . . . . . . . Rammed 2 | . . 1 . . 1 . . . . . . Targets Rammed 13 | . . 1 . 5 1 . . . . . 6 Kicked 11 | . . . . 5 . . . . . . 6 Crushed . | . . . . . . . . . . . . Highest Temperature 474 | . 12 397 288 474 4 462 . 94 2 246 251 Average Temperature 139 | . 7 157 120 172 4 145 . 54 1 82 84 Received Heat Transfer 2769 | . 24 261 864 408 282 305 . 396 . 49 180 Effects 21 | . . 2 4 7 . 8 . . . . . Shutdowns 6 | . . 1 . 1 . 4 . . . . . Energy Bleed 1 | . . . 1 . . . . . . . . Interference 7 | . . . 3 1 . 3 . . . . . Matter Decay 2 | . . 1 . . . 1 . . . . . Damage (minor) 2 | . . . . 2 . . . . . . . Damage (major) 3 | . . . . 3 . . . . . . . Siege Activations . | . . . . . . . . . . . . Robots Corrupted . | . . . . . . . . . . . . Combat Hostiles . | . . . . . . . . . . . . Parts Fried 8 | . . . . . . . . . . 6 2 Impact Corruptions 20 | . . . . 5 . . . . . 5 10 Robots Melted . | . . . . . . . . . . . . Combat Hostiles . | . . . . . . . . . . . . Parts Melted 6 | . . 1 2 . . 3 . . . . . Heat Transferred 4720 | . . 1073 1147 74 . 1546 . 325 37 370 148 Parts Sabotaged . | . . . . . . . . . . . . Parts Stolen . | . . . . . . . . . . . . Parts Stripped . | . . . . . . . . . . . . Power Chain Reactions . | . . . . . . . . . . . . Alert | -11 -10 -9 -8 -7 -7 -6 -5 -5 -4 -4 -3 ------- Run | Yrd Mat Mat Mat Fac Sto Fac Fac DSF Fac Ext Res Peak Influence 341 | . 212 309 188 341 154 192 18 32 . 276 315 Initial 144 | . . 89 69 85 109 70 14 12 . . 144 Average 101 | . 143 179 99 161 127 86 14 14 . 83 129 Maximum Alert Level 1 | . 1 1 . 1 . . . . . 1 1 Low Security (%) 85 | 100 98 59 100 56 100 100 100 100 100 85 89 Level 1 14 | . 1 40 . 43 . . . . . 14 10 Level 2 . | . . . . . . . . . . . . Level 3 . | . . . . . . . . . . . . Level 4 . | . . . . . . . . . . . . Level 5 . | . . . . . . . . . . . . High Security . | . . . . . . . . . . . . Max Security . | . . . . . . . . . . . . Squads Dispatched 24 | . . 2 2 7 1 2 . 1 2 2 5 Investigation 3 | . . . . 1 . . . . . 2 . Extermination 7 | . . . . 2 . 1 . . 2 . 2 Reinforcement 11 | . . 2 2 1 1 1 . 1 . . 3 Assault . | . . . . . . . . . . . . Garrison 3 | . . . . 3 . . . . . . . Intercept . | . . . . . . . . . . . . Searches Triggered . | . . . . . . . . . . . . Construction Impeded . | . . . . . . . . . . . . Haulers Reinforced . | . . . . . . . . . . . . Active Scanning Responses . | . . . . . . . . . . . . Cargo Convoy Interrupts . | . . . . . . . . . . . . Stealth | -11 -10 -9 -8 -7 -7 -6 -5 -5 -4 -4 -3 --------- Run | Yrd Mat Mat Mat Fac Sto Fac Fac DSF Fac Ext Res Distress Signals 7 | . 1 2 . 1 1 . . . . 1 1 Communications Jammed 5 | . . . . . . . . . . 5 . Distress Signals 5 | . . . . . . . . . . 5 . Times Spotted 163 | . 13 16 16 23 13 13 . 6 3 26 34 Peak Tracking Total 12 | . 4 6 4 6 12 4 . 4 3 6 11 Tactical Retreats 17 | . 1 1 1 1 1 1 . 3 . 2 6 Traps | -11 -10 -9 -8 -7 -7 -6 -5 -5 -4 -4 -3 ------- Run | Yrd Mat Mat Mat Fac Sto Fac Fac DSF Fac Ext Res Traps Triggered 6 | . . . . . . 1 . 1 1 3 . Indirectly . | . . . . . . . . . . . . Trap Hack Attempts . | . . . . . . . . . . . . Triggered . | . . . . . . . . . . . . Disarmed . | . . . . . . . . . . . . Reprogrammed . | . . . . . . . . . . . . Reused . | . . . . . . . . . . . . Traps Extracted . | . . . . . . . . . . . . Installed . | . . . . . . . . . . . . Triggered . | . . . . . . . . . . . . Machines | -11 -10 -9 -8 -7 -7 -6 -5 -5 -4 -4 -3 ---------- Run | Yrd Mat Mat Mat Fac Sto Fac Fac DSF Fac Ext Res Machines Disabled 15 | . 1 . . 11 . 1 . . . 2 . Max in Single Turn 3 | . 1 . . 3 . 1 . . . 1 . Garrison Access 1 | . . . . . . . . . . . 1 Machines Repaired . | . . . . . . . . . . . . Machines Dismantled . | . . . . . . . . . . . . Machines Sabotaged . | . . . . . . . . . . . . Overloaded Fab Kills . | . . . . . . . . . . . . Hacking | -11 -10 -9 -8 -7 -7 -6 -5 -5 -4 -4 -3 --------- Run | Yrd Mat Mat Mat Fac Sto Fac Fac DSF Fac Ext Res Machines Accessed 33 | . 2 4 5 3 1 4 1 . . 11 2 Terminals 25 | . 2 3 4 1 1 2 1 . . 10 1 Fabricators 1 | . . . . 1 . . . . . . . Repair Stations 1 | . . . . . . 1 . . . . . Recycling Units 1 | . . . . . . . . . . 1 . Scanalyzers 4 | . . 1 1 1 . 1 . . . . . Garrison Access 1 | . . . . . . . . . . . 1 Total Hacks 84 | . 5 15 13 9 2 6 1 . . 27 6 Successful 43 | . 3 7 6 7 1 1 1 . . 16 1 Failed 41 | . 2 8 7 2 1 5 . . . 11 5 Catastrophic 7 | . . . 1 1 . 1 . . . 3 1 Database Lockouts . | . . . . . . . . . . . . Manual 22 | . 4 4 6 1 . 1 . . . 4 2 Terminals 58 | . 5 8 11 1 2 4 1 . . 24 2 Fabricators 2 | . . . . 2 . . . . . . . Repair Stations 1 | . . . . . . 1 . . . . . Recycling Units 3 | . . . . . . . . . . 3 . Scanalyzers 16 | . . 7 2 6 . 1 . . . . . Garrison Access 4 | . . . . . . . . . . . 4 Terminal Hacks 23 | . 2 1 4 . 1 1 1 . . 13 . Record 2 | . . . . . . . . . . 2 . Robot Analysis 1 | . . . 1 . . . . . . . . Prototype ID Bank 4 | . 1 1 2 . . . . . . . . Open Door 6 | . . . . . 1 . . . . 5 . Open DSF 2 | . . . . . . 1 1 . . . . Emergency Access Points 1 | . . . 1 . . . . . . . . Terminal Index 1 | . . . . . . . . . . 1 . Locate Traps 1 | . . . . . . . . . . 1 . Maintenance Status 1 | . . . . . . . . . . 1 . Hauler Manifests 2 | . 1 . . . . . . . . 1 . Zone Layout 2 | . . . . . . . . . . 2 . Fabricator Hacks 2 | . . . . 2 . . . . . . . Load Schematic 1 | . . . . 1 . . . . . . . Build 1 | . . . . 1 . . . . . . . Repair Station Hacks . | . . . . . . . . . . . . Recycling Unit Hacks 1 | . . . . . . . . . . 1 . Report Inventory 1 | . . . . . . . . . . 1 . Scanalyzer 13 | . . 6 2 5 . . . . . . . Insert Component 7 | . . 3 1 3 . . . . . . . Analyze 6 | . . 3 1 2 . . . . . . . Garrison Access Hacks 1 | . . . . . . . . . . . 1 Seal Access 1 | . . . . . . . . . . . 1 Unauthorized Hacks 3 | . 1 . . . . . . . . 2 . Terminals 3 | . 1 . . . . . . . . 2 . Botnet 3 | . 1 . . . . . . . . 2 . Fabricators . | . . . . . . . . . . . . Repair Stations . | . . . . . . . . . . . . Recycling Units . | . . . . . . . . . . . . Scanalyzers . | . . . . . . . . . . . . Garrison Access . | . . . . . . . . . . . . Data Cores Recovered 1 | . . . . . . . . . . . 1 Used . | . . . . . . . . . . . . Hacking Detections 27 | . 1 4 5 3 1 3 1 . . 8 1 Full Trace Events 3 | . . . . 1 . . . . . 2 . Feedback Events . | . . . . . . . . . . . . Feedback Blocked . | . . . . . . . . . . . . Robot Schematics Acquired . | . . . . . . . . . . . . Robots Built . | . . . . . . . . . . . . Authchips . | . . . . . . . . . . . . Time . | . . . . . . . . . . . . Total Robot Build Rating . | . . . . . . . . . . . . Part Schematics Acquired 6 | . . 3 1 2 . . . . . . . Parts Built 2 | . . . . 2 . . . . . . . Authchips . | . . . . . . . . . . . . Time 62 | . . . . 62 . . . . . . . Total Part Build Rating 4 | . . . . 4 . . . . . . . Parts Repaired . | . . . . . . . . . . . . Time . | . . . . . . . . . . . . Parts Recycled . | . . . . . . . . . . . . Recycled Matter . | . . . . . . . . . . . . Retrieved Matter . | . . . . . . . . . . . . Retrieved Components . | . . . . . . . . . . . . Parts Scanalyzed 7 | . . 3 1 3 . . . . . . . Part Schematics Acquired 6 | . . 3 1 2 . . . . . . . Parts Damaged . | . . . . . . . . . . . . Bothacking | -11 -10 -9 -8 -7 -7 -6 -5 -5 -4 -4 -3 ------------ Run | Yrd Mat Mat Mat Fac Sto Fac Fac DSF Fac Ext Res Used RIF Installer . | . . . . . . . . . . . . Robots Hacked . | . . . . . . . . . . . . Non-combat . | . . . . . . . . . . . . Combat . | . . . . . . . . . . . . Robot Hacks Applied . | . . . . . . . . . . . . Relay Couplers Released . | . . . . . . . . . . . . Fabnet Peak Effective % . | . . . . . . . . . . . . Robots Rewired . | . . . . . . . . . . . . Allies Hacked . | . . . . . . . . . . . . Hacks Repelled . | . . . . . . . . . . . . Allies | -11 -10 -9 -8 -7 -7 -6 -5 -5 -4 -4 -3 -------- Run | Yrd Mat Mat Mat Fac Sto Fac Fac DSF Fac Ext Res Total Allies 10 | . . . . . . . . . . 10 . Largest Group 5 | . . . . . . . . . . 5 4 Highest-Rated Group 358 | . . . . . . . . . . 358 307 Highest-Rated Ally 159 | . . . . . . . . . . 159 159 Total Orders . | . . . . . . . . . . . . Ally Attacks 79 | . . . . . . . . . . 65 14 Total Damage 1868 | . . . . . . . . . . 1586 282 Kills 16 | . . . . . . . . . . 16 . Allies Corrupted . | . . . . . . . . . . . . Allies Melted 1 | . . . . . . . . . . . 1 Intel | -11 -10 -9 -8 -7 -7 -6 -5 -5 -4 -4 -3 ------- Run | Yrd Mat Mat Mat Fac Sto Fac Fac DSF Fac Ext Res Robot Analysis Total 1 | . . . 1 . . . . . . . . Derelict Logs Recovered . | . . . . . . . . . . . . Drone Launches . | . . . . . . . . . . . . Drone Recoveries . | . . . . . . . . . . . . Exploration | -11 -10 -9 -8 -7 -7 -6 -5 -5 -4 -4 -3 ------------- Run | Yrd Mat Mat Mat Fac Sto Fac Fac DSF Fac Ext Res Turns Passed 6781 | 53 345 457 723 1186 100 840 8 219 776 1403 671 Spaces Moved 4483 | 47 273 248 428 568 130 650 6 122 309 873 829 Core 1427 | 18 . 40 241 8 78 188 . 29 307 484 34 Treads . | . . . . . . . . . . . . Legs 969 | . . . 76 560 4 . . 25 . 70 234 Wheels 1307 | 29 273 150 . . . 462 6 68 . 319 . Hover 111 | . . . 111 . . . . . . . . Flight 669 | . . 58 . . 48 . . . 2 . 561 Fastest Speed 30 | 50 90 90 50 120 40 50 130 50 50 50 30 Average Speed 121 | 81 90 142 129 177 59 102 130 110 230 122 68 Slowest Speed 600 | 150 90 300 260 450 150 350 130 200 300 600 190 Overloaded Moves . | . . . . . . . . . . . . Propulsion Burnouts . | . . . . . . . . . . . . Robots Hopped 7 | . . . . . . . . . . . 7 Cave-ins Triggered 3 | . . . . . . . . . . 3 . Exploration Rate (%) 35 | 4 55 29 35 15 36 13 . 85 5 76 36 Regions Visited 11 Branch Regions 2 Pre-discovered Areas . | . . . . . . . . . . . . Known Exits Taken 3 | . 1 1 . . . . 1 . . . . Unknown Exits Taken 7 | 1 . . 1 1 1 1 . . 1 1 . Scrap Searched . | . . . . . . . . . . . . Spaces Dug 25 | . . . . . . . . . . 25 . Terrain Destroyed 67 | . . . 3 33 . 6 . . . 25 . Melee 25 | . . . . . . . . . . 25 . Projectile 18 | . . . 3 9 . 6 . . . . . AOE 24 | . . . . 24 . . . . . . . Terrain Rammed . | . . . . . . . . . . . . Walls Destroyed . | . . . . . . . . . . . . Machines Disabled . | . . . . . . . . . . . . Actions | -11 -10 -9 -8 -7 -7 -6 -5 -5 -4 -4 -3 --------- Run | Yrd Mat Mat Mat Fac Sto Fac Fac DSF Fac Ext Res Total 5372 | 61 343 301 539 686 145 757 6 197 368 1086 883 Wait 264 | . 34 12 25 16 . 20 . 57 26 58 16 Move 4456 | 46 272 247 427 567 129 649 5 121 308 870 815 Hop 7 | . . . . . . . . . . . 7 Pick Up 96 | 9 9 5 15 16 . 16 . 7 4 10 5 Fast Attach 52 | . 1 . . 14 2 6 . 2 1 24 2 Attach 76 | 6 . 5 17 9 2 13 1 1 7 12 3 Detach 6 | . . . . . 1 1 . . 3 1 . Swap 19 | . 4 1 1 3 . 4 . 4 . 2 . Drop 51 | . 6 2 . 13 4 7 . 3 . 8 8 Fire 197 | . 17 28 54 25 6 41 . 2 4 18 2 Melee 88 | . . . . 18 . . . . . 51 19 Ram 2 | . . 1 . . 1 . . . . . . Kick 11 | . . . . 5 . . . . . . 6 Crush . | . . . . . . . . . . . . Escape Stasis 47 | . . . . . . . . . 15 32 . Rewire . | . . . . . . . . . . . . Trap . | . . . . . . . . . . . . Miscellaneous . | . . . . . . . . . . . . Route ------- -11/Scrapyard -10/Materials (discovered 2 exits: *Mat / [*Min]) -9/Materials -8/Materials -7/Factory (discovered 2 exits: *Fac / *Sto) -7/Storage -6/Factory (discovered 2 exits: *Fac / [*Low]) -5/Factory -5/DSF -4/Factory -4/Extension (discovered 2 exits: *Res / [*Cet]) -3/Research History --------- Turn | Location | Event 7 | -11/Scrapyard | Discovered new exit (range 16) 54 | -11/Scrapyard | Entered Materials 241 | -10/Materials | Discovered new exit (range 7) 257 | -10/Materials | Discovered new exit (range 9) 301 | -10/Materials | Build established: Mutant 398 | -10/Materials | Identified exit to Materials 399 | -10/Materials | Entered another Materials area 399 | -9/Materials | Evolved 2 slots: Utility x2 820 | -9/Materials | Discovered new exit (range 16) 822 | -9/Materials | Lost 4 parts (1p2n1w) 852 | -9/Materials | Identified exit to Materials 856 | -9/Materials | Entered another Materials area 856 | -8/Materials | Evolved 2 slots: Propulsion x2 1146 | -8/Materials | Lost 7 parts (1p3n1u2w) 1173 | -8/Materials | Core integrity fell below 50% 1236 | -8/Materials | Lost 5 parts (1p2u2w) 1245 | -8/Materials | Core integrity fell below 20% 1489 | -8/Materials | Discovered new exit (range 5) 1579 | -8/Materials | Entered Factory 1579 | -7/Factory | Evolved 2 slots: Power x1, Utility x1 1967 | -7/Factory | Discovered new exit (range 14) 2233 | -7/Factory | Garrison activated, responded to threat 2308 | -7/Factory | Discovered new exit (range 5) 2367 | -7/Factory | Found Powered Armor 2556 | -7/Factory | Lost 10 parts (2p4n2u2w) 2759 | -7/Factory | Fabricated VTOL Module? 2765 | -7/Factory | Entered Storage 2794 | -7/Storage | Lost 4 parts (1n2u1w) 2808 | -7/Storage | Core integrity fell below 50% 2842 | -7/Storage | Core integrity fell below 20% 2851 | -7/Storage | Lost 3 parts (1p2n) 2857 | -7/Storage | Discovered new exit (range 16) 2865 | -7/Storage | Entered Factory 2865 | -6/Factory | Evolved 2 slots: Power x1, Utility x1 3231 | -6/Factory | Discovered new exit (range 16) 3358 | -6/Factory | Build established: Scavenger-Mutant 3496 | -6/Factory | Discovered new exit (range 9) 3606 | -6/Factory | Assembled infested ambush trap array 3705 | -6/Factory | Entered another Factory area 3705 | -5/Factory | Evolved 2 slots: Utility x1, Weapon x1 3712 | -5/Factory | Identified exit to DSF 3713 | -5/Factory | Entered DSF 3822 | -5/DSF | Additional patrols routed to DSF 3922 | -5/DSF | Discovered new exit (range 14) 3932 | -5/DSF | Entered Factory 3932 | -4/Factory | Evolved 2 slots: Utility x1, Weapon x1 3959 | -4/Factory | Lost 13 parts (3p3n4u3w) 4188 | -4/Factory | Build established: Mutant 4702 | -4/Factory | Discovered new exit (range 13) 4708 | -4/Factory | Entered Extension 4711 | -4/Extension | Lost 7 parts (1n3u3w) 4788 | -4/Extension | Spotted B-86 Titan 4981 | -4/Extension | Rescued a captive Derelict 4987 | -4/Extension | Rescued a captive Derelict 5534 | -4/Extension | Crushed by falling debris 5535 | -4/Extension | System corruption reached 10% 5574 | -4/Extension | Rescued a captive Derelict 5577 | -4/Extension | Rescued a captive Derelict 5746 | -4/Extension | Build established: Scavenger-Mutant 5804 | -4/Extension | Lost 3 parts (1n1u1w) 5822 | -4/Extension | Rescued a captive Derelict 5824 | -4/Extension | Rescued a captive Derelict 5826 | -4/Extension | Crushed by falling debris 5830 | -4/Extension | Crushed by falling debris 5886 | -4/Extension | Lost 7 parts (1p5u1w) 5919 | -4/Extension | Rescued a captive Derelict 5929 | -4/Extension | Rescued a captive Derelict 5937 | -4/Extension | Rescued a captive Derelict 5959 | -4/Extension | Core integrity fell below 50% 5960 | -4/Extension | Rescued A7 6075 | -4/Extension | Discovered new exit (range 10) 6076 | -4/Extension | Discovered new exit (range 6) 6104 | -4/Extension | System corruption reached 30% 6109 | -4/Extension | Disrupted transfer network 6111 | -4/Extension | Entered Research 6111 | -3/Research | Accompanied by 4 allies (A7) 6111 | -3/Research | Evolved 2 slots: Utility x2 6371 | -3/Research | Lost 3 allies 6551 | -3/Research | System corruption reached 10% 6584 | -3/Research | Lost 9 parts (1p1n4u3w) 6629 | -3/Research | Core integrity fell below 50% 6632 | -3/Research | Spotted B-86 Titan 6664 | -3/Research | Core integrity fell below 20% 6723 | -3/Research | Spotted B-86 Titan 6782 | -3/Research | Destroyed by G-67 Veteran with Field Laser Last Messages --------------- 06724_ Enh. Optical Array destroyed. 06724_ Subatomic Condenser disabled. 06724_ Slug penetrates Wall. 06731_ ALERT: Suspicious intruders detected, dispatching Cutter reinforcements to area. 06739_ System corrupted: Matter fused (-10). 06739_ Penetrated by Slug. 06749_ Acquired Prototype Device. 06750_ Identified Prc. Energy Filter. 06751_ Dropped Prc. Energy Filter. 06761_ System corrupted: Substantial component data lost. 06761_ ALERT: Rogue bot located, Programmers report to Research Zone 6V. 06769_ Acquired Q-thruster. 06771_ O-24 Administrator uses terminal to summon reinforcements. 06771_ ALERT: Hostiles spotted, dispatching reinforcements to Terminal R003. 06771_ O-24 Administrator locks terminal. Map ----- +----------------------------------------------------+ | ????????????????# # """"" #??????????????? | | ????????????????# # """"" #??????????????? | | ????????????????# + """"" #??????????????? | | ????????????????# # #??????????????? | | ????????????????# + #??????????????? | | ????????????????# # """ #??????????????? | | ????????????????# # T" #??????????????? | | ????????????????# # """ #??????????????? | | ????????????????# # #??????????????? | | ??????????????? # #??????????????? | | ???????????? ########+#################### | | ???????????? % | | ???????????? ########### ########[##### | | ??????????? ########?????????# # #!##### | | ?????????? ?????????????????# # +!/% | | ?????????? ???????#########??# # #=#! | | ??????????? ????????? #??# # # #= | | ????????????????????? #??# # + # | | ?????????????????????? #??# # # #! | | ??????????????????????? #??# ######## # %% | | ???????????????????????# ####+##+###????# ###/# | | ???????????????????????# # #????# #?#%% | | ???????????????????????# # #????# #?### | | ???????????????????????# # """"#????# #???? | | ???????????????????????# # """"#????# #???? | | ???????????????????????# @ # """"#????# #???? | | ???????????????????????+ A + """"#????# #???? | | ???????????????????????# # #????# #???? | | ???????????????????????# # #????# #???? | | ????????????????????? #####+##########+##### | | ??????????????????? / | | ????????????????? g ####### | | ???????????????? Rg g ? #?????# """" | | ???????????????######### #?????# """" | | ???????????????????????######## #?????# """" | | ??????????????????????????????#u #?????# """" | | ??????????????????????????????# #?????# | | ??????????????????????????????# #?????# | | ??????????????????????????????# #?????#####+### | | ??????????????????????????????# #??????# ^ | | ??????????????????????????????# +??????# | | ??????????????????????????????# ???????# | | ??????????????????????????????# ???????# ^ | | ??????????????????????????????? ???????# | | ??????????????????????????????????????????# ^^^^ | | ??????????????????????????????????????????# ""T" | | ??????????????????????????????????????????# """" | | ??????????????????????????????????????????# | | ??????????????????????????????????????????# | | ??????????????????????????????????????????# | +----------------------------------------------------+ Best States ------------- Heat Dissipation 54 Energy Generation 51 Energy Capacity 590 Matter Stores 300 Matter Capacity 300 Sight Range 22 Robot Scan Range 16 Terrain Scan Density 210 Jamming Range 14 Power Amplification 30 Armor Coverage 400 Resistance: TH 30 Weapon Cycling 30 Evasion (%) 64 Core Analysis 6 Recoil Reduction 1 Particle Charging 20 Kinecelleration 30 Offensive Hacking 10 Defensive Hacking 10 Authchip Count 2 Item Schematics ----------------- VTOL Module | -9/Materials | Scanalyzed Sensor Array | -9/Materials | Scanalyzed Structural Scanner | -9/Materials | Scanalyzed Sml. Storage Unit | -8/Materials | Scanalyzed Remote Datajack | -7/Factory | Scanalyzed Lgt. Armor Plating | -7/Factory | Scanalyzed Robot Schematics ------------------ None Fabricated ------------ VTOL Module | x2 | -7/Factory Alien Tech Used ----------------- None Achievements -------------- Part-time Excavator Challenges ------------ None Game ------ Seed ResetAluminumStripper Manual? 0 Play Time 01:14:15 Cumulative 38.3 hours Start 2024.06.12 @ 22:02:19 End 2024.06.15 @ 00:01:43 Sessions 3 Manual Loads 0 Difficulty Rogue Special Mode None Game No. 67 Rogue 67 Adventurer 0 Explorer 0 Win Type - Total 0 Types 0/0/0/0/0/0/0/0/0 Lore% 28 Gallery% 43 Achievement% 32 Wizard Run 0 Options --------- Layout 1 ASCII 0 Keyboard 0 Movement Mouse Keybinds 0 Fullscreen 2 Font 32/Smallcaps Map View 50x35 Zoom Use 0% Tactical HUD 1 Map Filters NONE Filters NONE Steam 1 RUN: e0a81159-3d98-4de3-90c4-d6b4bb430d97